fUSD/lending_fUSD_20250611
["ID","MTS","AMOUNT","RATE_DAILY","PERIOD"]
[365395203,1749649637179,-150.26361312,0.000189,2]
[365395204,1749649637208,-3.80045452,0.000189,2]
[365395205,1749649641121,-199.77310336,0.000189,2]
[365395206,1749649641144,-300.0,0.000189,2]
[365395207,1749649641166,-151.0,0.00018989,2]
[365395208,1749649641189,-526.40892813,0.00018998,2]
[365395209,1749649641211,-500.0,0.00018998,2]
[365395210,1749649641234,-500.0,0.00018998,2]
[365395211,1749649641257,-500.0,0.00018998,2]
[365395212,1749649641279,-500.0,0.00018998,2]
[365395213,1749649641302,-500.0,0.00018998,2]
[365395214,1749649641323,-500.0,0.00018998,2]
[365395215,1749649641349,-500.0,0.00018998,2]
[365395216,1749649641372,-584.29176794,0.00018998,2]
[365395217,1749649641400,-151.0,0.00018999,2]
[365395218,1749649641426,-207.4,0.00018999,2]
[365395219,1749649641451,-1957.856,0.00018999,2]
[365395220,1749649641475,-668.65185757,0.00018999,2]
[365395221,1749649641499,-500.0,0.00018999,2]
[365395222,1749649641522,-500.0,0.00018999,2]
[365395223,1749649641548,-500.0,0.00018999,2]
[365395224,1749649641572,-253.618343,0.00018999,2]
[365395225,1749649656462,-302.22,0.0001852,2]
[365395226,1749649656494,-496.78,0.00018537,2]
[365395227,1749649656520,-502.1,0.00018537,2]
[365395228,1749649656545,-509.06,0.00018584,2]
[365395229,1749649656568,-246.381657,0.00018999,2]
[365395230,1749649656592,-500.0,0.00018999,2]
[365395231,1749649656618,-500.0,0.00018999,2]
[365395232,1749649656644,-500.0,0.00018999,2]
[365395233,1749649656666,-500.0,0.00018999,2]
[365395234,1749649656689,-500.0,0.00018999,2]
[365395235,1749649656713,-500.0,0.00018999,2]
[365395236,1749649656736,-500.0,0.00018999,2]
[365395237,1749649656759,-500.0,0.00018999,2]
[365395238,1749649656782,-500.0,0.00018999,2]
[365395239,1749649656805,-500.0,0.00018999,2]
[365395240,1749649656828,-500.0,0.00018999,2]
[365395241,1749649656855,-500.0,0.00018999,2]
[365395242,1749649656879,-500.0,0.00018999,2]
[365395243,1749649656906,-500.0,0.00018999,2]
[365395244,1749649656931,-500.0,0.00018999,2]
[365395245,1749649656957,-443.458343,0.00018999,2]
[365395246,1749649663801,2000.0,0.00018516,120]
[365395247,1749649670189,-493.57,0.00018584,2]
[365395248,1749649670214,-304.77,0.00018584,2]
[365395249,1749649670239,-499.3,0.00018584,2]
[365395250,1749649670267,-56.541657,0.00018999,2]
[365395251,1749649670291,-500.0,0.00018999,2]
[365395252,1749649670314,-500.0,0.00018999,2]
[365395253,1749649670337,-500.0,0.00018999,2]
[365395254,1749649670361,-500.0,0.00018999,2]
[365395255,1749649670387,-500.0,0.00018999,2]
[365395256,1749649670414,-500.0,0.00018999,2]
[365395257,1749649670439,-500.0,0.00018999,2]
[365395258,1749649670462,-500.0,0.00018999,2]
[365395259,1749649670488,-500.0,0.00018999,2]
[365395260,1749649670512,-500.0,0.00018999,2]
[365395261,1749649670535,-500.0,0.00018999,2]
[365395262,1749649670560,-500.0,0.00018999,2]
[365395263,1749649670583,-500.0,0.00018999,2]
[365395264,1749649670606,-500.0,0.00018999,2]
[365395265,1749649670633,-500.0,0.00018999,2]
[365395266,1749649670657,-500.0,0.00018999,2]
[365395267,1749649670681,-500.0,0.00018999,2]
[365395268,1749649670704,-145.818343,0.00018999,2]
[365395269,1749649680845,-2751.0,0.00018512,2]
[365395270,1749649680870,-302.86,0.00018599,2]
[365395271,1749649680898,-490.77,0.00018627,2]
[365395272,1749649680923,-501.62,0.00018627,2]
[365395273,1749649680949,-354.181657,0.00018999,2]
[365395274,1749649680974,-284.31545951,0.00018999,2]
[365395275,1749649680997,-500.0,0.00018999,2]
[365395276,1749649681021,-500.0,0.00018999,2]
[365395277,1749649681045,-500.0,0.00018999,2]
[365395278,1749649681068,-151.0,0.00018999,2]
[365395279,1749649681092,-161.85310669,0.00018999,2]
[365395280,1749649681116,-3502.3997768,0.00019,2]
[365395281,1749649692577,202.0,0.00017371,2]
[365395282,1749649735309,141.43585491,0.00016164,2]
[365395283,1749649759121,-268.14989516,0.00016164,2]
[365395284,1749649817378,1000.0,0.00024,120]
[365395303,1749649831613,-90.41424993,0.00016164,2]
[365395305,1749649831623,-150.0,0.00018385,7]
[365395307,1749649831633,-423.45569504,0.0001841,2]
[365395309,1749649831644,-72.17430496,0.0001841,2]
[365395311,1749649831653,-2188.13576986,0.00018422,2]
[365395312,1749649831668,-2585.13,0.00018422,2]
[365395313,1749649831680,-1425.55987746,0.00018422,2]
[365395314,1749649831842,-8965.44435268,0.00018422,2]
[365395315,1749649831851,-150.0,0.00018478,2]
[365395316,1749649831861,-305.58,0.00018742,2]
[365395317,1749649831871,-491.87,0.00018849,2]
[365395318,1749649831881,-494.88,0.00018849,2]
[365395319,1749649831891,-504.49,0.00018849,2]
[365395320,1749649831901,-150.51965284,0.00018899,2]
[365395321,1749649831910,-506.12,0.00018944,2]
[365395322,1749649831919,-502.78,0.00018944,2]
[365395323,1749649831929,-304.91,0.00018944,2]
[365395324,1749649831938,-496.48,0.00018958,2]
[365395325,1749649831947,-508.36,0.00018958,2]
[365395326,1749649831956,-301.3,0.00018958,2]
[365395327,1749649831965,-497.42,0.00018958,2]
[365395328,1749649831975,-500.32,0.00018976,2]
[365395329,1749649831985,-507.96,0.00018976,2]
[365395330,1749649831994,-302.31,0.00018976,2]
[365395331,1749649832009,-287.14352977,0.00018999,2]
[365395332,1749649832019,-8488.10183297,0.00018999,2]
[365395333,1749649832058,-1065.50982256,0.00018999,2]
[365395334,1749649832069,-398.0,0.00018999,2]
[365395335,1749649832081,-2523.27185134,0.00018999,2]
[365395336,1749649832090,-301.35,0.00018999,2]
[365395337,1749649832100,-495.76,0.00018999,2]
[365395338,1749649832109,-1889.74650329,0.00019,2]
[365395339,1749649832120,-490.5,0.00019,2]
[365395340,1749649832131,-44819.04829138,0.00019,2]
[365395341,1749649832141,-152.0,0.00019,2]
[365395342,1749649832150,-258.67,0.00019,2]
[365395343,1749649832160,-200.0,0.00019,2]
[365395344,1749649832169,-507.07,0.00019,2]
[365395345,1749649832178,-508.11,0.00019,2]
[365395346,1749649832187,-1440.68330726,0.00019001,2]
[365395347,1749649832199,-1059.31669274,0.00019001,2]
[365395348,1749649832208,-663.48330726,0.00019001,2]
[365395349,1749649832219,-1836.51669274,0.00019001,2]
[365395350,1749649832228,-151.0,0.00019044,2]
[365395351,1749649832237,-405.19842364,0.00019053,2]
[365395352,1749649832246,-234.56972814,0.00019054,2]
[365395353,1749649832260,-773.07819536,0.00019054,2]
[365395363,1749649837512,-361.70592476,0.00019054,2]
[365395364,1749649837527,-660.94282374,0.00019054,2]
[365395366,1749649837536,-167.37,0.00019076,2]
[365395367,1749649837546,-151.0,0.00019099,2]
[365395368,1749649837555,-2105.41764886,0.00019109,2]
[365395369,1749649837564,-2183.31810187,0.00019164,2]
[365395370,1749649837573,-298.30954872,0.00019178,2]
[365395371,1749649837583,-151.0,0.00019178,2]
[365395372,1749649837591,-255.41,0.00019178,2]
[365395373,1749649837601,-200.0,0.0001919,2]
[365395374,1749649837610,-202.0,0.00019213,2]
[365395375,1749649837619,-2264.10087164,0.00019219,2]
[365395376,1749649837629,-2347.87260389,0.00019274,2]
[365395377,1749649837637,-2434.74389024,0.00019329,2]
[365395378,1749649837646,-590.0,0.00019371,2]
[365395379,1749649837656,-2524.82941417,0.00019384,2]
[365395380,1749649837665,-1972.28132901,0.00019439,2]
[365395381,1749649837675,-225.0,0.0001946,2]
[365395382,1749649837685,-170.0,0.000195,2]
[365395383,1749649837694,-829.166443,0.00019599,2]
[365395384,1749649837704,-150.0,0.00019603,2]
[365395385,1749649837870,-150.0,0.00019603,2]
[365395386,1749649837898,-150.0,0.00019603,2]
[365395387,1749649837908,-150.0,0.00019603,2]
[365395388,1749649837917,-150.0,0.00019603,2]
[365395389,1749649837926,-150.0,0.00019603,2]
[365395390,1749649837935,-150.0,0.00019603,2]
[365395391,1749649837945,-150.0,0.0001963,2]
[365395392,1749649837954,-150.0,0.0001963,2]
[365395393,1749649837963,-150.0,0.0001963,2]
[365395394,1749649837972,-150.0,0.0001963,2]
[365395395,1749649837982,-200.0,0.00019658,2]
[365395396,1749649837991,-412.0,0.00019672,2]
[365395397,1749649838000,-302.0,0.00019695,2]
[365395398,1749649838011,-1000.0,0.000197,2]
[365395399,1749649838020,-1000.0,0.000197,2]
[365395400,1749649838030,-1002.0,0.000197,2]
[365395401,1749649838039,-156.587,0.00019726,2]
[365395402,1749649838048,-993.14918681,0.00019735,2]
[365395403,1749649838058,-62606.0,0.000198,2]
[365395404,1749649838067,-172.0,0.00019838,2]
[365395405,1749649838077,-500.0,0.0001984,2]
[365395406,1749649838086,-200.0,0.0001984,2]
[365395407,1749649838095,-742.22,0.0001984,2]
[365395408,1749649838104,-175.386,0.0001984,2]
[365395409,1749649838113,-168.0,0.00019887,2]
[365395410,1749649838123,-150.0,0.00019888,2]
[365395411,1749649838133,-150.0,0.00019888,2]
[365395412,1749649838142,-150.0,0.00019888,2]
[365395413,1749649838151,-150.0,0.00019888,2]
[365395414,1749649838160,-150.0,0.00019888,2]
[365395415,1749649838169,-150.0,0.00019888,2]
[365395416,1749649838179,-150.0,0.00019888,2]
[365395417,1749649838188,-150.0,0.00019888,2]
[365395418,1749649838198,-168.0,0.00019888,2]
[365395419,1749649838207,-20177.56193525,0.00019889,2]
[365395420,1749649838216,-500.0,0.00019899,2]
[365395421,1749649838225,-186.64487382,0.00019899,2]
[365395422,1749649838235,-500.0,0.00019899,2]
[365395423,1749649838244,-500.0,0.00019899,2]
[365395424,1749649838254,-309.93021392,0.00019899,2]
[365395425,1749649838267,-500.0,0.00019899,2]
[365395426,1749649838276,-499.02113355,0.00019899,2]
[365395427,1749649838286,-619.57461387,0.00019899,2]
[365395428,1749649838295,-500.0,0.00019899,2]
[365395429,1749649838304,-500.0,0.00019899,2]
[365395430,1749649838313,-5000.0,0.000199,2]
[365395431,1749649838322,-20177.56193525,0.000199,2]
[365395432,1749649838332,-203.57355785,0.000199,2]
[365395433,1749649838341,-35126.65907264,0.000199,2]
[365395434,1749649838350,-200.40811192,0.000199,2]
[365395435,1749649838360,-6404.87239877,0.000199,2]
[365395436,1749649838369,-207.2095282,0.000199,2]
[365395437,1749649838378,-150.0,0.00019915,2]
[365395438,1749649838388,-150.0,0.00019915,2]
[365395439,1749649838397,-150.0,0.00019915,2]
[365395440,1749649838406,-150.0,0.00019915,2]
[365395441,1749649838415,-150.0,0.00019915,2]
[365395442,1749649838425,-150.0,0.00019915,2]
[365395443,1749649838434,-200.0,0.00019943,2]
[365395444,1749649838448,-200.0,0.00019943,2]
[365395445,1749649838457,-150.0,0.00019943,2]
[365395446,1749649838466,-200.0,0.00019943,2]
[365395447,1749649838475,-200.82939456,0.00019943,2]
[365395448,1749649838485,-175.82066896,0.00019973,2]
[365395449,1749649838494,-641.05777722,0.00019973,2]
[365395450,1749649838503,-500.0,0.00019973,2]
[365395452,1749649838515,-500.0,0.00019973,2]
[365395453,1749649838525,-500.0,0.00019973,2]
[365395454,1749649838534,-500.0,0.00019973,2]
[365395455,1749649838543,-500.0,0.00019973,2]
[365395456,1749649838553,-366.51961909,0.00019973,2]
[365395457,1749649838562,-500.0,0.00019973,2]
[365395458,1749649838571,-302.0,0.00019984,2]
[365395459,1749649838580,-150.28,0.0001999,2]
[365395460,1749649838589,-150.28,0.0001999,2]
[365395461,1749649838598,-150.28,0.0001999,2]
[365395462,1749649838607,-150.28,0.0001999,2]
[365395463,1749649838616,-150.28,0.0001999,2]
[365395464,1749649838625,-150.28,0.0001999,2]
[365395466,1749649838635,-150.28,0.0001999,2]
[365395468,1749649838645,-150.28,0.0001999,2]
[365395469,1749649838654,-150.28,0.0001999,2]
[365395471,1749649838663,-150.28,0.0001999,2]
[365395472,1749649838672,-150.28,0.0001999,2]
[365395473,1749649838682,-150.28,0.0001999,2]
[365395475,1749649838691,-150.28,0.0001999,2]
[365395477,1749649838700,-150.28,0.0001999,2]
[365395479,1749649838710,-150.28,0.0001999,2]
[365395481,1749649838719,-150.28,0.0001999,2]
[365395483,1749649838728,-150.28,0.0001999,2]
[365395485,1749649838738,-150.28,0.0001999,2]
[365395487,1749649838747,-150.28,0.0001999,2]
[365395489,1749649838756,-150.28,0.0001999,2]
[365395491,1749649838769,-150.28,0.0001999,2]
[365395493,1749649838778,-150.28,0.0001999,2]
[365395495,1749649838788,-150.28,0.0001999,2]
[365395497,1749649838797,-150.28,0.0001999,2]
[365395499,1749649838806,-150.28,0.0001999,2]
[365395501,1749649838816,-150.28,0.0001999,2]
[365395502,1749649838825,-150.28,0.0001999,2]
[365395505,1749649838835,-150.28,0.0001999,2]
[365395507,1749649838844,-150.28,0.0001999,2]
[365395508,1749649838853,-150.28,0.0001999,2]
[365395509,1749649838863,-150.28,0.0001999,2]
[365395510,1749649838872,-150.28,0.0001999,2]
[365395511,1749649838882,-150.28,0.0001999,2]
[365395512,1749649838891,-669.08307195,0.00019999,2]
[365395513,1749649838900,-300.0,0.00019999,2]
[365395514,1749649838909,-2002.63748951,0.00019999,2]
[365395515,1749649838919,-155.0,0.00019999,2]
[365395516,1749649838928,-1000.0,0.00019999,2]
[365395517,1749649838937,-1000.0,0.00019999,2]
[365395518,1749649838946,-7239.41784005,0.00019999,2]
[365395519,1749649838955,-1000.0,0.00019999,2]
[365395520,1749649838965,-1000.0,0.00019999,2]
[365395521,1749649838975,-150.0,0.00019999,2]
[365395522,1749649838984,-361.8940698,0.00019999,2]
[365395527,1749649839617,-305.02838755,0.00019999,2]
[365395528,1749649839629,-803.92460037,0.00019999,2]
[365395529,1749649839641,-1383.6302839,0.00019999,2]
[365395530,1749649839652,-983.26357058,0.00019999,2]
[365395531,1749649839664,-1162.2590878,0.00019999,2]
[365395532,1749649839673,-2250.42415713,0.00019999,2]
[365395533,1749649839689,-451.15504761,0.00019999,2]
[365395534,1749649839701,-592.79221909,0.00019999,2]
[365395535,1749649839711,-1000.0,0.00019999,2]
[365395536,1749649839720,-500.0,0.00019999,2]
[365395538,1749649839730,-667844.82994275,0.0002,3]
[365395540,1749649839739,-22485.70429105,0.0002,3]
[365395541,1749649839749,-2232264.89586309,0.0002,2]
[365395542,1749649839761,-819487.38472178,0.0002,2]
[365395543,1749649839773,-1658.30000166,0.0002,2]
[365395544,1749649839785,-1879.59148716,0.0002,2]
[365395545,1749649839800,-354.05687384,0.0002,2]
[365395546,1749649839811,-2401.79850295,0.0002,2]
[365395547,1749649839824,-295.29186825,0.0002,2]
[365395548,1749649839836,-11758.29271116,0.0002,2]
[365395549,1749649840231,-2772.98065775,0.0002,2]
[365395550,1749649840243,-1037.1750148,0.0002,2]
[365395551,1749649840257,-21942.0,0.0002,2]
[365395552,1749649840324,-682187.57324289,0.0002,2]
[365395553,1749649840338,-6769.40332284,0.0002,2]
[365395554,1749649840351,-2019.88,0.0002,2]
[365395555,1749649840364,-35133.22165604,0.0002,2]
[365395556,1749649840380,-431.89,0.0001989,3]
[365395557,1749649840390,-106.11769881,0.0002,2]
[365395558,1749649840927,-345.12246421,0.0002,2]
[365395559,1749649840939,-2137.51132674,0.0002,2]
[365395560,1749649840989,-505.02,0.0002,2]
[365395591,1749649842726,-996.0817485,0.00019986,2]
[365395592,1749649842736,-820.7769911,0.00019986,2]
[365395593,1749649842746,-645.4722338,0.00019986,2]
[365395594,1749649842756,-470.1674764,0.00019986,2]
[365395595,1749649842771,-294.8627191,0.00019986,2]
[365395596,1749649842781,-1171.3865058,0.00019996,2]
[365395597,1749649842791,-6606.22670251,0.0002,2]
[365395598,1749649842804,-546045.11027793,0.0002,2]
[365395599,1749649842816,-275409.50188931,0.0002,2]
[365395600,1749649842827,-33913.25779964,0.0002,2]
[365395601,1749649842855,-14410.76387749,0.0002,2]
[365395848,1749649845504,-1000.0,0.000197,2]
[365395850,1749649845514,-3742.88097168,0.0002,2]
[365395852,1749649845526,-1665.29600007,0.0002,2]
[365395854,1749649845538,-5595.74499999,0.0002,2]
[365395864,1749649845620,-6258.81349727,0.0002,2]
[365395871,1749649845678,-2466.1,0.0002,2]
[365395879,1749649845739,-343.68943434,0.0002,2]
[365395881,1749649845751,-26298.97228583,0.0002,2]
[365395883,1749649845764,-12703.32860984,0.0002,2]
[365395885,1749649845775,-719.26365,0.0002,2]
[365395887,1749649845786,-770.95840931,0.0002,2]
[365395930,1749649847160,-50058.54389967,0.0002,2]
[365395931,1749649882431,1444.27817788,0.0002,30]
[365395932,1749649971334,294.06,0.00013699,2]
[365395967,1749650395606,-500.0,0.00016164,2]
[365395968,1749650395630,-1168.84,0.00016552,2]
[365395970,1749650491364,500.0,0.00016164,2]
[365395972,1749650755817,690.02,0.00024658,120]
[365395973,1749650828272,-202.0,0.00017213,2]
[365395974,1749650828315,-166.49215278,0.00017213,2]
[365395975,1749650828361,-202.0,0.00017213,2]
[365395976,1749650828400,-200.0,0.00018119,2]
[365395977,1749650828440,-300.0,0.00018119,2]
[365395978,1749650828478,-164.58596307,0.00018119,2]
[365395979,1749650837095,-135.41403693,0.00018119,2]
[365395980,1749650837118,-730.32647881,0.0001812,2]
[365395981,1749650850137,-8212.63197487,0.0001812,2]
[365395982,1749650868158,500.0,0.00016164,2]
[365395983,1749650876666,235.88,0.00024657,120]
[365395984,1749650956685,536.83407776,0.00016164,2]
[365395986,1749650983086,279.35,0.00013699,2]
[365395989,1749651031891,-152.481,0.00017013,2]
[365395990,1749651031900,-591.95835329,0.00017641,2]
[365395991,1749651031912,-226.58187652,0.00017641,2]
[365395992,1749651031922,-202.0,0.00017741,2]
[365395993,1749651031931,-818.54022979,0.00017803,2]
[365395994,1749651031940,-236.29524294,0.00017902,2]
[365395995,1749651031950,-523.334954,0.00017965,2]
[365395996,1749651031962,-295.20527579,0.00017965,2]
[365395997,1749651031971,-621.1,0.00018002,2]
[365395998,1749651031980,-150.0,0.00018065,7]
[365395999,1749651031990,-527.0,0.00018119,2]
[365396000,1749651032000,-2755.00937148,0.0001812,2]
[365396512,1749651037715,-855.59066805,0.0001812,2]
[365396538,1749651037940,-11046.44150679,0.0001812,2]
[365396540,1749651037950,-150.0,0.00018125,2]
[365396542,1749651037961,-150.0,0.00018195,2]
[365396544,1749651037970,-151.0,0.00018201,2]
[365396546,1749651037979,-492.35,0.00018211,2]
[365396548,1749651037988,-506.95,0.00018211,2]
[365396550,1749651037997,-495.8,0.00018211,2]
[365396552,1749651038008,-501.93,0.00018211,2]
[365396554,1749651038019,-166.49215278,0.00018212,2]
[365396556,1749651038028,-154.01,0.00018213,2]
[365396558,1749651038038,-509.23,0.00018294,2]
[365396560,1749651038049,-490.25,0.00018294,2]
[365396562,1749651038058,-495.55,0.00018294,2]
[365396564,1749651038067,-250.0,0.00018379,2]
[365396566,1749651038081,-666.0,0.00018411,2]
[365396568,1749651038091,-504.82,0.00018426,2]
[365396570,1749651038100,-504.12,0.00018426,2]
[365396572,1749651038110,-506.83,0.00018426,2]
[365396574,1749651038119,-1000.0,0.00018469,2]
[365396576,1749651038128,-168.0,0.00018505,2]
[365396578,1749651038137,-161.0,0.0001854,2]
[365396580,1749651038146,-504.6,0.00018611,2]
[365396582,1749651038155,-303.57,0.00018611,2]
[365396584,1749651038164,-497.84,0.00018611,2]
[365396586,1749651038175,-300.34,0.00018618,2]
[365396588,1749651038184,-507.56,0.00018646,2]
[365396590,1749651038193,-503.78,0.00018646,2]
[365396592,1749651038203,-505.24,0.00018646,2]
[365396594,1749651038214,-302.27,0.00018658,2]
[365396596,1749651038223,-305.76,0.00018711,2]
[365396598,1749651038232,-300.0,0.00018714,2]
[365396600,1749651038241,-304.57,0.00018787,2]
[365396602,1749651038250,-998.52045077,0.000188,2]
[365396604,1749651038259,-1168.84,0.00018816,2]
[365396606,1749651038269,-169.38,0.00018818,2]
[365396608,1749651038278,-600.0,0.00018824,4]
[365396610,1749651038287,-300.0,0.00018824,2]
[365396612,1749651038296,-303.92,0.00018875,2]
[365396614,1749651038305,-225.5866098,0.000189,2]
[365396616,1749651038314,-500.0,0.00018904,2]
[365396618,1749651038323,-1689.60473557,0.00018929,2]
[365396620,1749651038332,-1957.856,0.0001893,2]
[365396622,1749651038342,-207.4,0.0001893,2]
[365396624,1749651038351,-151.0,0.0001893,2]
[365396626,1749651038360,-500.0,0.0001893,2]
[365396628,1749651038370,-500.0,0.0001893,2]
[365396630,1749651038378,-500.0,0.0001893,2]
[365396632,1749651038388,-668.65185757,0.0001893,2]
[365396634,1749651038397,-151.0,0.0001893,2]
[365396636,1749651038406,-500.0,0.0001893,2]
[365396638,1749651038415,-500.0,0.0001893,2]
[365396640,1749651038424,-500.0,0.0001893,2]
[365396642,1749651038433,-500.0,0.0001893,2]
[365396644,1749651038442,-500.0,0.0001893,2]
[365396646,1749651038451,-500.0,0.0001893,2]
[365396648,1749651038463,-500.0,0.0001893,2]
[365396650,1749651038473,-500.0,0.0001893,2]
[365396652,1749651038482,-500.0,0.0001893,2]
[365396654,1749651038491,-500.0,0.0001893,2]
[365396656,1749651038500,-500.0,0.0001893,2]
[365396658,1749651038509,-500.0,0.0001893,2]
[365396660,1749651038518,-500.0,0.0001893,2]
[365396662,1749651038528,-151.0,0.0001893,2]
[365396665,1749651038537,-500.0,0.0001893,2]
[365396666,1749651038546,-500.0,0.0001893,2]
[365396668,1749651038556,-500.0,0.0001893,2]
[365396670,1749651038565,-500.0,0.0001893,2]
[365396672,1749651038574,-500.0,0.0001893,2]
[365396674,1749651038583,-500.0,0.0001893,2]
[365396676,1749651038592,-500.0,0.0001893,2]
[365396678,1749651038601,-500.0,0.0001893,2]
[365396680,1749651038610,-500.0,0.0001893,2]
[365396682,1749651038619,-500.0,0.0001893,2]
[365396684,1749651038628,-500.0,0.0001893,2]
[365396686,1749651038637,-151.0,0.0001893,2]
[365396688,1749651038647,-500.0,0.0001893,2]
[365396690,1749651038657,-500.0,0.0001893,2]
[365396692,1749651038666,-500.0,0.0001893,2]
[365396694,1749651038676,-500.0,0.0001893,2]
[365396696,1749651038685,-500.0,0.0001893,2]
[365396698,1749651038694,-500.0,0.0001893,2]
[365396700,1749651038703,-500.0,0.0001893,2]
[365396702,1749651038713,-500.0,0.0001893,2]
[365396704,1749651038723,-500.0,0.0001893,2]
[365396706,1749651038732,-500.0,0.0001893,2]
[365396708,1749651038741,-500.0,0.0001893,2]
[365396728,1749651038892,-500.0,0.0001893,2]
[365396731,1749651038934,-500.0,0.0001893,2]
[365396733,1749651038943,-500.0,0.0001893,2]
[365396735,1749651038953,-500.0,0.0001893,2]
[365396737,1749651038964,-500.0,0.0001893,2]
[365396739,1749651038973,-500.0,0.0001893,2]
[365396741,1749651038982,-500.0,0.0001893,2]
[365396743,1749651038993,-300.0,0.0001893,2]
[365396745,1749651039002,-300.0,0.0001893,2]
[365396747,1749651039016,-300.0,0.0001893,2]
[365396749,1749651039025,-300.0,0.0001893,2]
[365396751,1749651039034,-300.0,0.0001893,2]
[365396753,1749651039043,-300.0,0.0001893,2]
[365396755,1749651039053,-300.0,0.0001893,2]
[365396757,1749651039062,-300.0,0.0001893,2]
[365396759,1749651039072,-300.0,0.0001893,2]
[365396761,1749651039081,-300.0,0.0001893,2]
[365396763,1749651039091,-300.0,0.0001893,2]
[365396765,1749651039101,-300.0,0.0001893,2]
[365396767,1749651039110,-300.0,0.0001893,2]
[365396769,1749651039119,-300.0,0.0001893,2]
[365396771,1749651039129,-300.0,0.0001893,2]
[365396773,1749651039138,-300.0,0.0001893,2]
[365396775,1749651039148,-161.9,0.0001896,2]
[365396777,1749651039158,-2030.296672,0.00018985,2]
[365396779,1749651039167,-840.0,0.00019,2]
[365396781,1749651039177,-840.0,0.00019,2]
[365396783,1749651039186,-840.0,0.00019,2]
[365396785,1749651039196,-840.0,0.00019,2]
[365396787,1749651039205,-840.0,0.00019,2]
[365396789,1749651039216,-250.0,0.00019,2]
[365396791,1749651039226,-212.0,0.00019,2]
[365396793,1749651039235,-2105.41764886,0.0001904,2]
[365396795,1749651039245,-500.0,0.00019075,2]
[365396797,1749651039254,-500.0,0.00019075,2]
[365396799,1749651039263,-2183.31810187,0.00019095,2]
[365396801,1749651039272,-225.58660965,0.00019107,2]
[365396803,1749651039283,-2264.10087164,0.0001915,2]
[365396805,1749651039292,-151.0,0.00019178,2]
[365396807,1749651039301,-2347.87260389,0.00019205,2]
[365396808,1749651039311,-211.0,0.0001925,2]
[365396810,1749651039320,-212.0,0.0001925,2]
[365396812,1749651039330,-202.0,0.0001925,4]
[365396814,1749651039339,-2434.74389024,0.0001926,2]
[365396816,1749651039348,-225.58660965,0.00019314,2]
[365396818,1749651039358,-2524.82941417,0.00019315,2]
[365396820,1749651039367,-302.46,0.00019333,2]
[365396822,1749651039376,-343.19777023,0.0001937,2]
[365396824,1749651039385,-167.54192096,0.0001943,2]
[365396826,1749651039394,-211.0,0.000195,2]
[365396828,1749651039403,-212.0,0.000195,2]
[365396830,1749651039414,-225.58660965,0.00019521,2]
[365396832,1749651039423,-10671.70059327,0.00019523,2]
[365396834,1749651039433,-827.62432235,0.0001953,2]
[365396836,1749651039442,-7497.3,0.00019547,2]
[365396838,1749651039453,-167.54192093,0.00019548,2]
[365396839,1749651039465,-10671.70059322,0.00019565,2]
[365396840,1749651039476,-10671.70059322,0.00019607,2]
[365396841,1749651039486,-12500.0,0.00019621,2]
[365396842,1749651039495,-500.0,0.00019623,2]